[Event "48th Rilton Cup 2018"]
[Site "Stockholm"]
[Date "2019.01.04"]
[Round "8"]
[White "Eggleston, David J"]
[Black "Lyrberg, Patrik"]
[Result "1/2-1/2"]
[ECO "C54"]
[WhiteElo "2397"]
[BlackElo "2440"]
[Annotator "NA"]
[PlyCount "119"]
[EventDate "2018.12.27"]
[EventType "swiss"]
[EventCountry "SWE"]
[SourceTitle "playchess.com"]
[Source "ChessBase"]
[SourceQuality "1"]
[TimeControl "40/5400+30:1800+30"]

1. e4 {[%emt 0:03:46]} e5 {[%emt 0:00:00]} 2. Nf3 {[%emt 0:01:17]} Nc6 {[%emt 0:00:00]} 3. Bc4 {[%emt 0:01:26]} Bc5 {[%emt 0:00:58]} 4. c3 {[%emt 0:00:07]} Nf6 {[%emt 0:00:10]} 5. d3 {[%emt 0:00:05]} a5 {[%emt 0:04:01]} 6. O-O {[%emt 0:01:51]} O-O {[%emt 0:07:28]} 7. d4 {[%emt 0:02:18]} Bb6 {[%emt 0:13:19]} 8. dxe5 {[%emt 0:01:32]} Nxe4 {[%emt 0:00:07]} 9. Bd5 {[%emt 0:02:59]} Nc5 {[%emt 0:00:18]} 10. Bg5 {[%emt 0:11:15]} Ne7 {[%emt 0:00:07]} 11. Na3 {[%emt 0:02:40]} h6 {[%emt 0:00:16]} 12. Bh4 {[%emt 0:00:42]} d6 {[%emt 0:11:49]} 13. exd6 {[%emt 0:01:21]} Qxd6 {[%emt 0:00:17]} 14. Bxb7 {[%emt 0:18:37]} Qxd1 {[%emt 0:07:23]} 15. Rfxd1 {[%emt 0:04:40]} Nxb7 {[%emt 0:17:04]} 16. Bxe7 {[%emt 0:00:32]} Re8 {[%emt 0:00:12]} 17. Bh4 {[%emt 0:00:39]} g5 {[%emt 0:00:20]} 18. Bg3 {[%emt 0:06:58]} f5 {[%emt 0:00:04]} 19. h4 {[%emt 0:01:27]} f4 {[%emt 0:00:55]} 20. Bh2 {[%emt 0:00:08]} Nd6 {[%emt 0:05:45]} 21. hxg5 {[%emt 0:02:18]} Ne4 {[%emt 0:00:28]} 22. Nd4 {[%emt 0:04:06]} hxg5 {[%emt 0:00:19]} 23. Nc4 {[%emt 0:02:09]} Bc5 {[%emt 0:01:18]} 24. f3 {[%emt 0:08:04]} Nd6 {[%emt 0:05:27]} 25. Nxd6 {[%emt 0:01:01]} Bxd6 {[%emt 0:00:18]} 26. Kf2 {[%emt 0:04:43]} Kf7 {[%emt 0:00:15]} 27. g4 {[%emt 0:02:02]} Bb7 {[%emt 0:01:42]} 28. Re1 {[%emt 0:01:02]} Rh8 {[%emt 0:01:26]} 29. Bg1 {[%emt 0:05:46]} Rh3 {[%emt 0:00:29]} 30. Rad1 {[%emt 0:07:46]} Rah8 {[%emt 0:05:36]} 31. Rd3 {[%emt 0:00:38]} Rg3 {[%emt 0:00:24]} 32. a4 {[%emt 0:01:11]} Ba6 {[%emt 0:03:46]} 33. c4 {[%emt 0:00:35]} Rb8 {[%emt 0:02:04]} 34. b3 {[%emt 0:00:21]} Bc5 {[%emt 0:00:09]} 35. Re5 {[%emt 0:00:43]} Rxb3 {[%emt 0:00:16]} 36. Rf5+ {[%emt 0:00:20]} Kg6 {[%emt 0:01:22]} 37. Rxc5 {[%emt 0:00:33]} Rxd3 {[%emt 0:00:08]} 38. Rc6+ {[%emt 0:00:11]} Kf7 {[%emt 0:04:40]} 39. Ke2 {[%emt 0:00:01]} Ra3 {[%emt 0:01:12]} 40. Bf2 {[%emt 0:01:13]} Ra2+ {[%emt 0:05:21]} 41. Kf1 {[%emt 0:01:14]} Ra1+ {[%emt 0:01:43]} 42. Ke2 {[%emt 0:04:51]} Rg2 {[%emt 0:02:32]} 43. Rxa6 {[%emt 0:00:21]} c5 {[%emt 0:06:43]} 44. Ra7+ {[%emt 0:11:51]} Ke8 {[%emt 0:03:03]} 45. Nc2 {[%emt 0:00:27]} Ra2 {[%emt 0:00:50]} 46. Kf1 {[%emt 0:00:05]} Rh2 {[%emt 0:05:10]} 47. Kg1 {[%emt 0:00:09]} Rxf2 {[%emt 0:00:13]} 48. Kxf2 {[%emt 0:00:11]} Rxc2+ {[%emt 0:00:05]} 49. Ke1 {[%emt 0:00:18]} Rxc4 {[%emt 0:00:11]} 50. Rxa5 {[%emt 0:00:09]} Kd7 {[%emt 0:00:20]} 51. Ra6 {[%emt 0:00:12]} Rc3 {[%emt 0:01:30]} 52. Rg6 {[%emt 0:02:05]} Rxf3 {[%emt 0:00:38]} 53. Rxg5 {[%emt 0:00:03]} Kc6 {[%emt 0:00:16]} 54. Rf5 {[%emt 0:00:38]} Re3+ {[%emt 0:03:21]} 55. Kd2 {[%emt 0:00:42]} Re4 {[%emt 0:00:37]} 56. a5 {[%emt 0:00:43]} Kb5 {[%emt 0:05:49]} 57. g5 {[%emt 0:01:36]} Ra4 {[%emt 0:01:33]} 58. a6 {[%emt 0:02:57]} Rxa6 {[%emt 0:00:53]} 59. Rxf4 {[%emt 0:00:14]} Ra2+ {[%emt 0:00:08]} 60. Kc3 {[%emt 0:00:32]} 1/2-1/2

[Event "48th Rilton Cup 2018"]
[Site "Stockholm"]
[Date "2019.01.04"]
[Round "8"]
[White "Schekachikhin, Maksim"]
[Black "Libiszewski, Fabien"]
[Result "0-1"]
[ECO "E73"]
[WhiteElo "2368"]
[BlackElo "2481"]
[Annotator "ChessBase"]
[PlyCount "72"]
[EventDate "2018.12.27"]
[EventType "swiss"]
[EventCountry "SWE"]
[SourceTitle "playchess.com"]
[Source "ChessBase"]
[SourceQuality "1"]
[TimeControl "40/5400+30:1800+30"]

1. d4 {[%emt 0:00:00]} Nf6 {[%emt 0:03:30]} 2. c4 {[%emt 0:00:00]} g6 {[%emt 0:00:08]} 3. Nc3 {[%emt 0:00:10]} Bg7 {[%emt 0:00:03]} 4. e4 {[%emt 0:00:19]} d6 {[%emt 0:00:05]} 5. Be2 {[%emt 0:00:16]} O-O {[%emt 0:00:12]} 6. Bg5 {[%emt 0:01:02]} Nbd7 {[%emt 0:06:46]} 7. f3 {[%emt 0:01:40]} c6 {[%emt 0:11:37]} 8. Nh3 {[%emt 0:01:23]} a6 {[%emt 0:01:55]} 9. Nf2 {[%emt 0:04:06]} b5 {[%emt 0:07:21]} 10. O-O {[%emt 0:00:23]} Bb7 {[%emt 0:35:22]} 11. Rc1 {[%emt 0:13:45]} h6 {[%emt 0:13:00]} 12. Be3 {[%emt 0:03:24]} b4 {[%emt 0:01:53]} 13. Na4 {[%emt 0:04:43]} a5 {[%emt 0:00:08]} 14. Qd2 {[%emt 0:02:39]} Kh7 {[%emt 0:00:16]} 15. Rfd1 {[%emt 0:07:27]} Qc7 {[%emt 0:01:09]} 16. f4 {[%emt 0:05:24]} Rad8 {[%emt 0:04:03]} 17. Qc2 {[%emt 0:05:59]} e5 {[%emt 0:01:49]} 18. c5 {[%emt 0:06:45]} exd4 {[%emt 0:00:37]} 19. cxd6 {[%emt 0:03:25]} Qxd6 {[%emt 0:00:08]} 20. Rxd4 {[%emt 0:10:48]} Qe7 {[%emt 0:01:23]} 21. Bf3 {[%emt 0:02:05]} Rfe8 {[%emt 0:05:55]} 22. e5 {[%emt 0:12:15]} Nd5 {[%emt 0:00:24]} 23. Bxd5 {[%emt 0:00:05]} cxd5 {[%emt 0:00:03]} 24. Rdd1 {[%emt 0:05:28]} Rc8 {[%emt 0:01:55]} 25. Qd3 {[%emt 0:00:22]} f6 {[%emt 0:00:25]} 26. Qb5 {[%emt 0:01:54]} Ba8 {[%emt 0:00:35]} 27. Rxc8 {[%emt 0:02:44]} Rxc8 {[%emt 0:00:01]} 28. exf6 {[%emt 0:00:59]} Bxf6 {[%emt 0:00:57]} 29. Ng4 {[%emt 0:01:12]} Bg7 {[%emt 0:01:10]} 30. Qd3 {[%emt 0:00:42]} h5 {[%emt 0:01:32]} 31. Nf2 {[%emt 0:00:33]} Bc6 {[%emt 0:00:14]} 32. b3 {[%emt 0:01:42]} Bxa4 {[%emt 0:00:14]} 33. Bd2 {[%emt 0:01:51]} Bc6 {[%emt 0:00:19]} 34. f5 {[%emt 0:00:02]} Qf6 {[%emt 0:00:40]} 35. fxg6+ {[%emt 0:00:47]} Qxg6 {[%emt 0:00:11]} 36. Qa6 {[%emt 0:00:01]} Ra8 {[%emt 0:01:06]} 0-1

[Event "48th Rilton Cup 2018"]
[Site "Stockholm"]
[Date "2019.01.05"]
[Round "9"]
[White "Gajewski, Grzegorz"]
[Black "Gopal G.N."]
[Result "1/2-1/2"]
[ECO "A35"]
[WhiteElo "2598"]
[BlackElo "2582"]
[Annotator "ChessBase"]
[PlyCount "60"]
[EventDate "2018.12.27"]
[EventType "swiss"]
[EventCountry "SWE"]
[SourceTitle "playchess.com"]
[Source "ChessBase"]
[SourceQuality "1"]
[TimeControl "40/5400+30:1800+30"]

1. Nf3 {[%emt 0:00:10]} c5 {[%emt 0:00:00]} 2. c4 {[%emt 0:00:06]} Nf6 {[%emt 0:00:00]} 3. Nc3 {[%emt 0:00:08]} Nc6 {[%emt 0:00:22]} 4. e3 {[%emt 0:00:22]} e6 {[%emt 0:00:14]} 5. d4 {[%emt 0:00:08]} d5 {[%emt 0:00:07]} 6. cxd5 {[%emt 0:02:57]} exd5 {[%emt 0:00:55]} 7. Bb5 {[%emt 0:00:41]} cxd4 {[%emt 0:03:22]} 8. exd4 {[%emt 0:02:17]} Bd6 {[%emt 0:10:36]} 9. O-O {[%emt 0:00:18]} O-O {[%emt 0:01:40]} 10. Bg5 {[%emt 0:00:44]} Bg4 {[%emt 0:03:59]} 11. Bxc6 {[%emt 0:03:57]} bxc6 {[%emt 0:00:04]} 12. h3 {[%emt 0:00:06]} Bh5 {[%emt 0:02:53]} 13. Re1 {[%emt 0:07:09]} h6 {[%emt 0:04:15]} 14. Bh4 {[%emt 0:01:01]} g5 {[%emt 0:10:27]} 15. Bg3 {[%emt 0:00:08]} Bxg3 {[%emt 0:05:46]} 16. fxg3 {[%emt 0:00:03]} Bxf3 {[%emt 0:00:08]} 17. Qxf3 {[%emt 0:01:12]} Qd6 {[%emt 0:00:05]} 18. Re5 {[%emt 0:03:19]} Rae8 {[%emt 0:02:16]} 19. Rf1 {[%emt 0:03:09]} Kg7 {[%emt 0:04:37]} 20. Rf5 {[%emt 0:00:40]} Re6 {[%emt 0:00:07]} 21. Na4 {[%emt 0:16:39]} Qb4 {[%emt 0:08:24]} 22. Nc5 {[%emt 0:12:47]} Qxd4+ {[%emt 0:00:56]} 23. Qf2 {[%emt 0:00:02]} Qxf2+ {[%emt 0:00:48]} 24. R5xf2 {[%emt 0:00:03]} Rd6 {[%emt 0:00:39]} 25. Nb7 {[%emt 0:00:04]} Re6 {[%emt 0:00:46]} 26. Nc5 {[%emt 0:00:06]} Rd6 {[%emt 0:00:04]} 27. Nb7 {[%emt 0:00:04]} Rd7 {[%emt 0:00:47]} 28. Nc5 {[%emt 0:00:06]} Rd6 {[%emt 0:00:06]} 29. Nb7 {[%emt 0:00:04]} Rd7 {[%emt 0:00:03]} 30. Nc5 {[%emt 0:00:04]} Rd6 1/2-1/2

[Event "48th Rilton Cup 2018"]
[Site "Stockholm"]
[Date "2019.01.05"]
[Round "9"]
[White "Volkov, Sergey"]
[Black "Santos Latasa, Jaime"]
[Result "1-0"]
[ECO "E20"]
[WhiteElo "2583"]
[BlackElo "2584"]
[Annotator "ChessBase"]
[PlyCount "67"]
[EventDate "2018.12.27"]
[EventType "swiss"]
[EventCountry "SWE"]
[SourceTitle "playchess.com"]
[Source "ChessBase"]
[SourceQuality "1"]
[TimeControl "40/5400+30:1800+30"]

1. d4 {[%emt 0:00:00]} Nf6 {[%emt 0:00:00]} 2. c4 {[%emt 0:00:00]} e6 {[%emt 0:00:00]} 3. Nc3 {[%emt 0:00:00]} Bb4 {[%emt 0:00:00]} 4. f3 {[%emt 0:00:02]} c5 {[%emt 0:00:00]} 5. d5 {[%emt 0:00:05]} d6 {[%emt 0:00:02]} 6. e4 {[%emt 0:00:09]} b5 {[%emt 0:00:03]} 7. Bd2 {[%emt 0:00:05]} a6 {[%emt 0:00:24]} 8. a4 {[%emt 0:00:06]} bxc4 {[%emt 0:02:14]} 9. Bxc4 {[%emt 0:00:43]} O-O {[%emt 0:01:36]} 10. Nge2 {[%emt 0:07:03]} Re8 {[%emt 0:03:02]} 11. Nf4 {[%emt 0:09:54]} e5 {[%emt 0:05:51]} 12. Nd3 {[%emt 0:00:40]} Ba5 {[%emt 0:00:03]} 13. b3 {[%emt 0:13:15]} Nh5 {[%emt 0:03:55]} 14. O-O {[%emt 0:03:37]} Nd7 {[%emt 0:10:15]} 15. g3 {[%emt 0:04:06]} g6 {[%emt 0:02:42]} 16. Nb2 {[%emt 0:05:27]} Rb8 {[%emt 0:12:29]} 17. Bd3 {[%emt 0:04:31]} Bb4 {[%emt 0:00:27]} 18. Nc4 {[%emt 0:03:00]} Nb6 {[%emt 0:00:21]} 19. Ne3 {[%emt 0:00:11]} Ng7 {[%emt 0:01:32]} 20. Qe2 {[%emt 0:04:24]} a5 {[%emt 0:01:41]} 21. Nc2 {[%emt 0:08:26]} Nd7 {[%emt 0:03:05]} 22. Nb5 {[%emt 0:04:12]} Bxd2 {[%emt 0:01:25]} 23. Qxd2 {[%emt 0:00:04]} Nf8 {[%emt 0:02:22]} 24. Nca3 {[%emt 0:03:23]} Ra8 {[%emt 0:00:47]} 25. Nc4 {[%emt 0:00:59]} Ra6 {[%emt 0:00:10]} 26. f4 {[%emt 0:01:20]} f6 {[%emt 0:00:54]} 27. Kg2 {[%emt 0:04:54]} g5 {[%emt 0:02:20]} 28. fxg5 {[%emt 0:02:38]} fxg5 {[%emt 0:00:38]} 29. Qf2 {[%emt 0:00:31]} Ng6 {[%emt 0:02:33]} 30. Qf7+ {[%emt 0:00:38]} Kh8 {[%emt 0:00:05]} 31. Qc7 {[%emt 0:00:33]} Kg8 {[%emt 0:01:31]} 32. Rf7 {[%emt 0:01:16]} Qxc7 {[%emt 0:00:16]} 33. Rxc7 {[%emt 0:00:11]} Rd8 {[%emt 0:00:10]} 34. Nbxd6 {[%emt 0:01:15]} 1-0

[Event "48th Rilton Cup 2018"]
[Site "Stockholm"]
[Date "2019.01.05"]
[Round "9"]
[White "Heberla, Bartlomiej"]
[Black "Gholami, Aryan"]
[Result "0-1"]
[ECO "B13"]
[WhiteElo "2550"]
[BlackElo "2488"]
[Annotator "RC"]
[PlyCount "78"]
[EventDate "2018.12.27"]
[EventType "swiss"]
[EventCountry "SWE"]
[SourceTitle "playchess.com"]
[Source "ChessBase"]
[SourceQuality "1"]
[TimeControl "40/5400+30:1800+30"]

1. e4 {[%emt 0:10:10]} c6 {[%emt 0:00:00]} 2. d4 {[%emt 0:00:06]} d5 {[%emt 0:00:00]} 3. exd5 {[%emt 0:00:02]} cxd5 {[%emt 0:00:00]} 4. Bd3 {[%emt 0:00:04]} Nc6 {[%emt 0:00:00]} 5. c3 {[%emt 0:00:12]} Qc7 {[%emt 0:00:02]} 6. Ne2 {[%emt 0:00:10]} Bg4 {[%emt 0:00:07]} 7. O-O {[%emt 0:00:05]} e6 {[%emt 0:00:04]} 8. Qe1 {[%emt 0:00:07]} Nf6 {[%emt 0:00:05]} 9. Bg5 {[%emt 0:00:04]} Bh5 {[%emt 0:30:07]} 10. f4 {[%emt 0:22:20]} O-O-O {[%emt 0:04:05]} 11. Ng3 {[%emt 0:01:00]} Bg6 {[%emt 0:00:11]} 12. f5 {[%emt 0:00:06]} exf5 {[%emt 0:00:09]} 13. Bxf6 {[%emt 0:00:33]} gxf6 {[%emt 0:00:06]} 14. Nxf5 {[%emt 0:00:47]} Qb6 {[%emt 0:07:03]} 15. Nd2 {[%emt 0:09:40]} Qxb2 {[%emt 0:04:32]} 16. Nb3 {[%emt 0:08:45]} Qa3 {[%emt 0:04:50]} 17. Qh4 {[%emt 0:10:09]} Be7 {[%emt 0:00:30]} 18. Bb5 {[%emt 0:11:06]} Bxf5 {[%emt 0:08:28]} 19. Rxf5 {[%emt 0:01:34]} Na5 {[%emt 0:00:38]} 20. Qe1 {[%emt 0:03:22]} Bd6 {[%emt 0:07:33]} 21. Qf1 {[%emt 0:07:04]} a6 {[%emt 0:08:58]} 22. Bd3 {[%emt 0:05:23]} Be7 {[%emt 0:00:06]} 23. Bxa6 {[%emt 0:04:13]} bxa6 {[%emt 0:00:25]} 24. Qxa6+ {[%emt 0:00:02]} Nb7 {[%emt 0:00:09]} 25. Qc6+ {[%emt 0:00:03]} Kb8 {[%emt 0:00:06]} 26. Rb1 {[%emt 0:00:07]} Rd6 {[%emt 0:10:37]} 27. Qb5 {[%emt 0:00:12]} Kc7 {[%emt 0:00:06]} 28. Nc5 {[%emt 0:05:21]} Nxc5 {[%emt 0:00:05]} 29. dxc5 {[%emt 0:00:03]} Qa7 {[%emt 0:00:10]} 30. Kh1 {[%emt 0:00:28]} Rc6 {[%emt 0:02:51]} 31. Qe2 {[%emt 0:00:47]} Re6 {[%emt 0:00:18]} 32. Qh5 {[%emt 0:00:56]} Qxa2 {[%emt 0:00:17]} 33. Rff1 {[%emt 0:00:52]} Rg8 {[%emt 0:00:21]} 34. Qf3 {[%emt 0:00:23]} Bxc5 {[%emt 0:05:10]} 35. c4 {[%emt 0:00:01]} Rg5 {[%emt 0:02:31]} 36. h4 {[%emt 0:01:11]} Re3 {[%emt 0:01:33]} 37. Qf4+ {[%emt 0:00:28]} Bd6 {[%emt 0:00:04]} 38. Qf2 {[%emt 0:00:27]} Qxf2 {[%emt 0:00:18]} 39. Rxf2 {[%emt 0:00:01]} Rge5 {[%emt 0:00:22]} 0-1

[Event "48th Rilton Cup 2018"]
[Site "Stockholm"]
[Date "2019.01.05"]
[Round "9"]
[White "Urkedal, Frode Olav Olsen"]
[Black "Lalith Babu M R"]
[Result "1-0"]
[ECO "E21"]
[WhiteElo "2537"]
[BlackElo "2529"]
[Annotator "ChessBase"]
[PlyCount "159"]
[EventDate "2018.12.27"]
[EventType "swiss"]
[EventCountry "SWE"]
[SourceTitle "playchess.com"]
[Source "ChessBase"]
[SourceQuality "1"]
[TimeControl "40/5400+30:1800+30"]

1. d4 {[%emt 0:00:00]} Nf6 {[%emt 0:00:00]} 2. c4 {[%emt 0:00:00]} e6 {[%emt 0:00:00]} 3. Nf3 {[%emt 0:00:00]} b6 {[%emt 0:00:00]} 4. Nc3 {[%emt 0:01:08]} Bb4 {[%emt 0:00:35]} 5. e3 {[%emt 0:00:24]} Bb7 {[%emt 0:00:08]} 6. Bd3 {[%emt 0:00:04]} O-O {[%emt 0:01:05]} 7. O-O {[%emt 0:00:07]} c5 {[%emt 0:00:06]} 8. Na4 {[%emt 0:00:23]} cxd4 {[%emt 0:00:30]} 9. exd4 {[%emt 0:00:04]} Re8 {[%emt 0:02:02]} 10. Bf4 {[%emt 0:08:23]} Bf8 {[%emt 0:06:16]} 11. Re1 {[%emt 0:02:18]} d6 {[%emt 0:01:51]} 12. Nc3 {[%emt 0:05:34]} Nbd7 {[%emt 0:05:33]} 13. Rc1 {[%emt 0:03:13]} a6 {[%emt 0:00:45]} 14. h3 {[%emt 0:05:41]} h6 {[%emt 0:02:51]} 15. Bh2 {[%emt 0:02:26]} Rc8 {[%emt 0:11:41]} 16. a3 {[%emt 0:03:52]} Rc7 {[%emt 0:08:03]} 17. Bf1 {[%emt 0:26:34]} Qa8 {[%emt 0:01:09]} 18. Re3 {[%emt 0:05:44]} Rcc8 {[%emt 0:04:03]} 19. b4 {[%emt 0:00:22]} Red8 {[%emt 0:09:02]} 20. Rc2 {[%emt 0:11:47]} Ne4 21. Nxe4 Bxe4 22. Rd2 a5 23. Bg3 Bb7 24. Bd3 Ba6 25. Qe2 Re8 26. Rd1 Nf6 27. Bh4 Nh5 28. g3 g6 29. Re1 Bg7 30. d5 e5 31. b5 Bb7 32. Nd4 Rc7 33. Nf5 Bf8 34. f4 Qc8 35. fxe5 dxe5 36. d6 Rc5 37. Qg4 Re6 38. Ne7+ Bxe7 39. Bxe7 Qe8 40. Qh4 Qd7 41. Be2 Ng7 42. Qxh6 Rxe7 43. dxe7 Qxe7 44. Bd3 Qd6 45. Qh4 Bc8 46. g4 Ne6 47. Bf1 Nf4 48. Qf2 Be6 49. Qb2 f6 50. g5 Kf7 51. gxf6 Kxf6 52. Qf2 Bf5 53. Kh2 e4 54. Qg3 Qe5 55. Kh1 Rc8 56. Rf3 Ne6 57. Qh4+ Kg7 58. Qe7+ Kh6 59. Qh4+ Kg7 60. Qe7+ Kh6 61. Rfe3 Qf4 62. Bg2 Rxc4 63. Qf6 Rc2 64. Qh8+ Kg5 65. h4+ Qxh4+ 66. Qxh4+ Kxh4 67. Bxe4 Nd4 68. Bxc2 Nxc2 69. R1e2 Nxe3 70. Rxe3 Kg4 71. Kg1 Kf4 72. Rc3 Ke5 73. Rc6 Kd4 74. Kf2 Bd3 75. a4 g5 76. Rxb6 Bc2 77. Ra6 Bxa4 78. Rxa5 Bc2 79. b6 Be4 80. Ra4+ 1-0

[Event "48th Rilton Cup 2018"]
[Site "Stockholm"]
[Date "2019.01.05"]
[Round "9"]
[White "Yeoh, Li Tian"]
[Black "Santos Ruiz, Miguel"]
[Result "1/2-1/2"]
[ECO "B22"]
[WhiteElo "2508"]
[BlackElo "2523"]
[Annotator "ChessBase"]
[PlyCount "63"]
[EventDate "2018.12.27"]
[EventType "swiss"]
[EventCountry "SWE"]
[SourceTitle "playchess.com"]
[Source "ChessBase"]
[SourceQuality "1"]
[TimeControl "40/5400+30:1800+30"]

1. e4 {[%emt 0:00:00]} c5 {[%emt 0:00:00]} 2. c3 {[%emt 0:00:00]} Nf6 {[%emt 0:00:00]} 3. e5 {[%emt 0:00:00]} Nd5 {[%emt 0:00:00]} 4. Nf3 {[%emt 0:00:00]} d6 {[%emt 0:00:00]} 5. d4 {[%emt 0:02:50]} cxd4 {[%emt 0:00:09]} 6. cxd4 {[%emt 0:00:04]} Nc6 {[%emt 0:00:10]} 7. Bc4 {[%emt 0:00:10]} Nb6 {[%emt 0:00:08]} 8. Bb5 {[%emt 0:00:12]} dxe5 {[%emt 0:00:09]} 9. Nxe5 {[%emt 0:00:07]} Bd7 {[%emt 0:00:03]} 10. Nxd7 {[%emt 0:00:16]} Qxd7 {[%emt 0:00:05]} 11. Nc3 {[%emt 0:00:31]} e6 {[%emt 0:00:05]} 12. O-O {[%emt 0:00:41]} a6 {[%emt 0:00:04]} 13. Bxc6 {[%emt 0:03:00]} Qxc6 {[%emt 0:01:16]} 14. Re1 {[%emt 0:09:58]} Bb4 {[%emt 0:00:32]} 15. Qg4 {[%emt 0:03:19]} Kf8 {[%emt 0:00:05]} 16. Bg5 {[%emt 0:06:17]} Bxc3 {[%emt 0:21:43]} 17. bxc3 {[%emt 0:00:14]} Nd5 {[%emt 0:00:14]} 18. Rac1 {[%emt 0:07:08]} b5 {[%emt 0:02:22]} 19. a4 {[%emt 0:02:10]} h6 {[%emt 0:25:08]} 20. Bd2 {[%emt 0:03:52]} Kg8 {[%emt 0:12:05]} 21. h4 {[%emt 0:04:28]} h5 {[%emt 0:00:19]} 22. Qe2 {[%emt 0:00:26]} Rc8 {[%emt 0:01:37]} 23. axb5 {[%emt 0:05:23]} axb5 {[%emt 0:00:11]} 24. Rb1 {[%emt 0:00:41]} Nxc3 {[%emt 0:03:36]} 25. Bxc3 {[%emt 0:00:21]} Qxc3 {[%emt 0:00:03]} 26. d5 {[%emt 0:01:04]} exd5 {[%emt 0:00:57]} 27. Qxb5 {[%emt 0:00:43]} Qc6 {[%emt 0:02:40]} 28. Qxc6 {[%emt 0:05:50]} Rxc6 {[%emt 0:00:38]} 29. Re5 {[%emt 0:00:11]} g6 {[%emt 0:00:09]} 30. Rb8+ {[%emt 0:00:12]} Kg7 {[%emt 0:00:04]} 31. Rxh8 {[%emt 0:00:06]} Kxh8 {[%emt 0:00:02]} 32. Rxd5 {[%emt 0:00:06]} 1/2-1/2

[Event "48th Rilton Cup 2018"]
[Site "Stockholm"]
[Date "2019.01.05"]
[Round "9"]
[White "Zumsande, Martin"]
[Black "Eggleston, David J"]
[Result "1-0"]
[ECO "B22"]
[WhiteElo "2490"]
[BlackElo "2397"]
[Annotator "ChessBase"]
[PlyCount "61"]
[EventDate "2018.12.27"]
[EventType "swiss"]
[EventCountry "SWE"]
[SourceTitle "playchess.com"]
[Source "ChessBase"]
[SourceQuality "1"]
[TimeControl "40/5400+30:1800+30"]

1. e4 {[%emt 0:00:00]} c5 {[%emt 0:03:30]} 2. c3 {[%emt 0:00:00]} Nf6 {[%emt 0:01:09]} 3. e5 {[%emt 0:00:00]} Nd5 {[%emt 0:00:05]} 4. d4 {[%emt 0:00:02]} cxd4 {[%emt 0:00:09]} 5. cxd4 {[%emt 0:00:09]} d6 {[%emt 0:00:33]} 6. Bc4 {[%emt 0:00:35]} e6 {[%emt 0:00:06]} 7. Nf3 {[%emt 0:00:07]} Nc6 {[%emt 0:00:06]} 8. O-O {[%emt 0:00:22]} Be7 {[%emt 0:00:04]} 9. a3 {[%emt 0:00:09]} O-O {[%emt 0:02:32]} 10. Bd3 {[%emt 0:01:39]} Bd7 {[%emt 0:09:41]} 11. Qc2 {[%emt 0:00:46]} f5 {[%emt 0:00:47]} 12. exf6 {[%emt 0:01:16]} Nxf6 {[%emt 0:00:11]} 13. Nc3 {[%emt 0:02:29]} Qe8 {[%emt 0:03:30]} 14. h3 {[%emt 0:06:13]} Qh5 {[%emt 0:07:41]} 15. Ne2 {[%emt 0:07:18]} e5 16. Ng3 {[%emt 0:00:30]} Qe8 17. Re1 {[%emt 0:00:30]} exd4 18. Bf4 {[%emt 0:00:30]} Qd8 19. Ng5 {[%emt 0:00:30]} Kh8 20. Bxh7 {[%emt 0:00:30]} d5 21. Bg6 {[%emt 0:00:30]} Qb6 22. Qe2 {[%emt 0:00:30]} Be8 23. Bd3 {[%emt 0:00:30]} Ne4 24. Ne6 {[%emt 0:00:30]} Rf6 25. Qg4 {[%emt 0:00:30]} Rg6 26. Qh5+ {[%emt 0:00:30]} Rh6 27. Qxd5 {[%emt 0:00:30]} Nf6 28. Qf3 {[%emt 0:00:30]} Bh5 29. Nxh5 {[%emt 0:00:30]} Rxh5 30. Qg3 {[%emt 0:00:30]} Bf8 31. Bd6 {[%emt 0:00:30]} 1-0

[Event "48th Rilton Cup 2018"]
[Site "Stockholm"]
[Date "2019.01.05"]
[Round "9"]
[White "Libiszewski, Fabien"]
[Black "Blomqvist, Erik"]
[Result "1-0"]
[ECO "B80"]
[WhiteElo "2481"]
[BlackElo "2497"]
[Annotator "ChessBase"]
[PlyCount "57"]
[EventDate "2018.12.27"]
[EventType "swiss"]
[EventCountry "SWE"]
[SourceTitle "playchess.com"]
[Source "ChessBase"]
[SourceQuality "1"]
[TimeControl "40/5400+30:1800+30"]

1. e4 {[%emt 0:00:49]} c5 {[%emt 0:03:40]} 2. Nf3 {[%emt 0:00:09]} e6 {[%emt 0:00:06]} 3. d4 {[%emt 0:00:14]} cxd4 {[%emt 0:00:08]} 4. Nxd4 {[%emt 0:00:02]} Nf6 {[%emt 0:00:36]} 5. Nc3 {[%emt 0:00:23]} d6 {[%emt 0:00:07]} 6. Be3 {[%emt 0:00:36]} Be7 {[%emt 0:00:21]} 7. Qe2 {[%emt 0:06:32]} a6 {[%emt 0:18:24]} 8. O-O-O {[%emt 0:03:23]} Qc7 {[%emt 0:08:01]} 9. g4 {[%emt 0:04:32]} b5 {[%emt 0:02:19]} 10. g5 {[%emt 0:03:31]} Nfd7 {[%emt 0:00:13]} 11. a3 {[%emt 0:03:18]} Bb7 {[%emt 0:09:42]} 12. f4 {[%emt 0:05:22]} Nc5 {[%emt 0:15:31]} 13. Bg2 {[%emt 0:05:36]} Nbd7 {[%emt 0:03:29]} 14. h4 {[%emt 0:00:46]} Nb6 {[%emt 0:03:52]} 15. h5 {[%emt 0:06:39]} O-O-O {[%emt 0:02:46]} 16. g6 {[%emt 0:05:32]} hxg6 {[%emt 0:02:35]} 17. hxg6 {[%emt 0:01:14]} Rxh1 {[%emt 0:00:11]} 18. Rxh1 {[%emt 0:02:20]} e5 {[%emt 0:08:53]} 19. fxe5 {[%emt 0:08:10]} dxe5 {[%emt 0:00:05]} 20. Nf5 {[%emt 0:00:03]} Bf8 {[%emt 0:02:12]} 21. gxf7 {[%emt 0:01:44]} Qxf7 {[%emt 0:02:18]} 22. Qf2 {[%emt 0:04:38]} Qc7 {[%emt 0:00:19]} 23. Rh8 {[%emt 0:08:02]} Nba4 {[%emt 0:02:25]} 24. Bg5 {[%emt 0:01:38]} Nxc3 {[%emt 0:13:04]} 25. Bxd8 {[%emt 0:00:34]} Nb3+ {[%emt 0:00:40]} 26. cxb3 {[%emt 0:00:09]} Ne2+ {[%emt 0:00:26]} 27. Kd1 {[%emt 0:06:21]} Qc1+ {[%emt 0:00:21]} 28. Kxe2 {[%emt 0:00:05]} Qc2+ {[%emt 0:00:11]} 29. Kf1 {[%emt 0:01:58]} 1-0